bitfinex/quotes_SOLUSD_20230110
["timestamp","ask_amount","ask_price","bid_price","bid_amount"]
[1673340641779,20.0,16.143,16.13,26.09]
[1673340642724,20.0,16.142,16.128,46.52]
[1673340642942,20.96,16.141,16.128,46.52]
[1673340643155,0.96,16.14,16.128,46.52]
[1673340643682,20.0,16.141,16.129,0.96]
[1673340643892,20.0,16.142,16.124,46.53]
[1673340644096,20.0,16.14,16.126,46.52]
[1673340644292,46.49,16.139,16.126,46.52]
[1673340644500,46.49,16.139,16.126,20.0]
[1673340645048,1.92,16.138,16.126,20.0]
[1673340645352,20.0,16.14,16.126,20.0]
[1673340645570,1.92,16.139,16.126,20.0]
[1673340645764,21.92,16.139,16.125,119.0327]
[1673340645971,67.45,16.139,16.126,20.0]
[1673340646201,20.0,16.139,16.126,66.52]
[1673340646614,20.0,16.139,16.126,20.0]
[1673340646827,20.0,16.14,16.126,20.0]
[1673340647023,20.0,16.14,16.125,119.0327]
[1673340647236,20.0,16.138,16.125,119.0327]
[1673340648280,47.45,16.139,16.125,119.0327]
[1673340648493,0.96,16.138,16.127,20.0]
[1673340648712,0.96,16.138,16.128,17.0]
[1673340648930,20.96,16.138,16.126,37.0]
[1673340649119,0.96,16.137,16.126,37.0]
[1673340649666,0.96,16.137,16.125,119.0327]
[1673340649881,0.96,16.137,9.5,0.1]
[1673340649882,47.46,16.136,16.114,46.56]
[1673340650218,20.0,16.146,16.126,28.47148485]
[1673340650383,316.65201768,16.164,16.127,66.52]
[1673340650597,20.0,16.166,16.128,20.0]
[1673340650823,46.41,16.165,16.129,66.52]
[1673340651037,46.41,16.165,16.14,26.13]
[1673340651347,46.41,16.165,16.141,65.4]
[1673340651348,20.0,16.164,16.141,65.4]
[1673340651551,46.42,16.163,16.142,20.0]
[1673340651765,20.0,16.162,16.143,63.48]
[1673340651974,46.42,16.161,16.143,63.48]
[1673340652186,46.42,16.163,16.144,20.0]
[1673340652391,20.0,16.162,16.144,20.0]
[1673340652605,46.42,16.161,16.145,17.0]
[1673340652805,20.0,16.159,16.139,46.49]
[1673340653011,66.45,16.151,16.132,46.51]
[1673340653227,20.0,16.15,16.138,17.0]
[1673340653432,20.0,16.149,16.138,17.0]
[1673340653661,20.0,16.149,16.134,46.5]
[1673340654004,1.92,16.148,16.134,46.5]
[1673340654188,21.92,16.148,16.132,46.51]
[1673340654371,21.92,16.148,16.133,20.0]
[1673340654587,21.92,16.148,16.134,46.5]
[1673340654802,21.92,16.148,16.135,20.0]
[1673340655231,21.92,16.148,16.134,46.5]
[1673340655433,20.0,16.146,16.135,17.0]
[1673340655649,1.92,16.145,16.133,20.0]
[1673340656391,1.92,16.145,16.132,131.5269]
[1673340656605,131.73,16.14,16.127,35.22101163]
[1673340656800,47.45,16.139,16.127,35.22101163]
[1673340657015,0.96,16.138,16.111,125.38560357]
[1673340657226,20.0,16.136,16.113,20.0]
[1673340657442,84.46,16.135,16.114,46.56]
[1673340657653,20.96,16.134,16.114,46.56]
[1673340657875,64.46,16.133,16.113,20.0]
[1673340658068,20.0,16.131,16.113,20.0]
[1673340658280,84.47,16.13,16.113,20.0]
[1673340658491,20.0,16.129,16.113,20.0]
[1673340658702,47.48,16.128,16.113,20.0]
[1673340659019,0.96,16.127,16.113,20.0]
[1673340659233,0.96,16.126,16.112,46.57]
[1673340659443,0.96,16.125,16.112,46.57]
[1673340659665,0.96,16.124,16.112,46.57]
[1673340659864,0.96,16.124,16.102,20.0]
[1673340659865,46.53,16.123,16.103,46.59]
[1673340660077,46.53,16.123,16.103,162.566]
[1673340660290,20.96,16.122,16.103,162.566]
[1673340660491,47.5,16.121,16.104,20.0]
[1673340660695,20.0,16.12,16.105,46.59]
[1673340660901,0.96,16.119,16.105,46.59]
[1673340661115,0.96,16.119,16.106,20.0]
[1673340661116,0.96,16.118,16.106,20.0]
[1673340661541,0.96,16.118,16.106,18.0]
[1673340662380,0.96,16.118,16.107,17.0]
[1673340663449,0.96,16.118,16.105,66.59]
[1673340663667,0.96,16.119,16.106,20.0]
[1673340664794,0.96,16.119,16.107,17.96]
[1673340665016,0.96,16.119,16.107,17.0]
[1673340665338,20.0,16.12,16.108,0.96]
[1673340666269,20.0,16.12,16.108,20.96]
[1673340666486,20.0,16.12,16.109,17.0]
[1673340667341,1.92,16.119,16.109,17.0]
[1673340667553,1.92,16.119,16.108,17.0]
[1673340668706,20.0,16.12,16.108,17.0]
[1673340668903,20.0,16.12,16.109,1.92]
[1673340669130,20.0,16.123,16.11,20.0]
[1673340669468,46.54,16.122,16.111,17.0]
[1673340669642,20.0,16.121,16.111,17.0]
[1673340670280,1.92,16.12,16.107,20.0]
[1673340670495,27.23,16.12,16.103,162.566]
[1673340670706,67.5,16.119,16.105,46.59]
[1673340670924,20.96,16.118,16.105,46.59]
[1673340671124,20.96,16.117,16.104,13.85870357]
[1673340671343,20.0,16.115,16.094,20.0]
[1673340671661,20.0,16.115,16.096,13.85870357]
[1673340671662,66.56,16.114,16.096,13.85870357]
[1673340671984,0.96,16.113,16.097,46.61]
[1673340672183,46.57,16.112,16.097,46.61]
[1673340672391,40.96,16.111,16.097,46.61]
[1673340672607,27.23,16.11,16.096,13.85870357]
[1673340672818,67.53,16.109,16.094,46.62]
[1673340673013,0.96,16.108,16.094,46.62]
[1673340673220,20.0,16.108,16.094,46.62]
[1673340673438,67.53,16.109,16.094,60.47870357]
[1673340673958,67.53,16.109,16.095,20.0]
[1673340674392,67.53,16.109,16.095,33.85870357]
[1673340674608,67.53,16.109,16.096,17.0]
[1673340675210,66.57,16.109,16.096,17.0]
[1673340675419,66.57,16.109,16.097,15.77870357]
[1673340675867,20.0,16.109,16.098,30.85870357]
[1673340676179,20.0,16.109,16.099,1.92]
[1673340676371,66.57,16.109,16.099,1.92]
[1673340676589,20.0,16.109,16.098,17.0]
[1673340676810,20.0,16.109,16.097,17.0]
[1673340677133,20.0,16.108,16.097,17.0]
[1673340677651,20.0,16.108,16.094,66.62]
[1673340677839,1.92,16.107,16.095,20.0]
[1673340678050,66.57,16.109,16.095,20.0]
[1673340678278,66.57,16.109,16.095,33.85870357]
[1673340678492,1.92,16.108,16.095,33.85870357]
[1673340678681,20.0,16.109,16.095,33.85870357]
[1673340678890,66.57,16.109,16.096,18.92]
[1673340679316,66.57,16.109,16.096,32.77870357]
[1673340679524,20.0,16.127,16.1,26.12]
[1673340679747,138.1336,16.127,16.102,20.0]
[1673340679963,138.1336,16.127,16.103,181.9863]
[1673340680166,20.0,16.125,16.104,20.0]
[1673340680476,20.0,16.123,16.105,64.55]
[1673340680697,46.54,16.122,16.105,64.55]
[1673340680895,46.54,16.122,16.106,20.96]
[1673340681106,46.54,16.122,16.107,63.58]
[1673340681323,20.0,16.123,16.107,63.58]
[1673340681531,46.54,16.122,16.107,63.58]
[1673340682807,20.0,16.12,16.107,63.58]
[1673340683017,21.92,16.119,16.107,63.58]
[1673340683429,20.96,16.119,16.107,63.58]
[1673340683757,20.0,16.122,16.107,63.58]
[1673340683946,20.0,16.122,16.108,0.96]
[1673340684275,20.0,16.121,16.109,46.57]
[1673340684474,20.0,16.121,16.11,17.0]
[1673340684683,20.0,16.12,16.11,17.0]
[1673340684895,20.0,16.12,16.11,30.85870357]
[1673340685115,20.0,16.122,16.11,17.0]
[1673340685311,1.92,16.121,16.11,17.0]
[1673340685948,21.92,16.121,16.109,46.57]
[1673340686160,151.39,16.12,16.092,104.0588]
[1673340686379,20.0,16.118,16.095,111.7354]
[1673340686575,46.55,16.117,16.096,20.0]
[1673340686902,20.0,16.115,16.096,20.0]
[1673340687090,20.0,16.113,16.096,20.0]
[1673340687304,68.49,16.112,16.095,125.59410357]
[1673340687519,20.0,16.111,16.096,20.0]
[1673340687731,68.49,16.11,16.097,17.96]
[1673340688163,68.49,16.11,16.092,104.0588]
[1673340688164,151.61,16.11,16.086,46.64]
[1673340688360,46.57,16.109,16.084,158.3854]
[1673340688571,40.0,16.108,16.085,20.0]
[1673340688784,46.58,16.107,16.086,46.64]
[1673340688998,20.0,16.105,16.086,46.64]
[1673340689192,26.27,16.1,16.087,20.0]
[1673340689406,67.55,16.104,16.087,20.0]
[1673340689616,0.96,16.103,16.088,46.63]
[1673340689844,0.96,16.102,16.088,46.63]
[1673340690052,0.96,16.101,16.088,46.63]
[1673340690267,27.05,16.1,16.084,158.3854]
[1673340690466,20.0,16.098,16.084,111.7354]
[1673340690666,0.96,16.097,16.081,46.65]
[1673340690877,0.96,16.096,16.082,20.0]
[1673340691198,47.57,16.097,16.084,20.0]
[1673340691414,46.59,16.103,16.086,20.0]
[1673340691618,20.0,16.102,16.087,46.64]
[1673340691830,20.0,16.102,16.088,20.0]
[1673340692053,20.0,16.102,16.089,46.63]
[1673340692575,40.0,16.104,16.089,46.63]
[1673340692895,26.09,16.1,16.089,46.63]
[1673340693105,20.96,16.099,16.087,46.64]
[1673340693301,20.0,16.099,16.084,20.0]
[1673340693506,26.37,16.11,16.086,20.0]
[1673340693720,24.56,16.11,16.087,66.64]
[1673340693928,39.00061681,16.109,16.088,20.0]
[1673340694139,39.00061681,16.109,16.089,66.63]
[1673340694350,66.58,16.108,16.09,20.0]
[1673340694563,66.58,16.108,16.091,47.59]
[1673340694775,66.58,16.108,16.092,0.96]
[1673340694992,66.58,16.108,16.093,47.58]
[1673340695736,0.96,16.107,16.093,46.62]
[1673340695941,20.0,16.105,16.086,66.64]
[1673340696254,84.55,16.104,16.086,66.64]
[1673340696455,20.0,16.103,16.086,46.64]
[1673340696667,84.55,16.102,16.086,46.64]
[1673340696876,20.96,16.101,16.086,46.64]
[1673340697099,67.56,16.1,16.085,165.2898]
[1673340697412,20.96,16.099,16.085,118.6498]
[1673340697630,47.57,16.098,16.085,118.6498]
[1673340697819,0.96,16.097,16.085,118.6498]
[1673340699631,47.57,16.098,16.085,118.6498]
[1673340699632,46.61,16.098,16.085,118.6498]
[1673340699817,46.6,16.099,16.086,1.92]
[1673340700147,48.52,16.099,16.085,118.6498]
[1673340700341,39.00061681,16.098,16.085,118.6498]
[1673340700553,48.53,16.097,16.08,36.45907255]
[1673340700762,20.0,16.096,16.061,118.0339]
[1673340700978,20.0,16.094,16.062,20.0]
[1673340701189,122.66,16.09,16.062,20.0]
[1673340701398,106.36113736,16.089,16.063,46.71]
[1673340701720,21.57662475,16.087,16.064,20.0]
[1673340701922,84.6,16.086,16.065,46.7]
[1673340702134,0.96,16.085,16.065,46.7]
[1673340702444,20.0,16.083,16.066,20.0]
[1673340702661,68.57,16.082,16.066,20.0]
[1673340702874,20.0,16.081,16.066,20.0]
[1673340703282,21.92,16.08,16.066,20.0]
[1673340703495,17.0,16.086,16.066,20.0]
[1673340703496,186.6,16.116,16.068,20.0]
[1673340703713,20.0,16.095,16.074,155.0335]
[1673340703936,20.0,16.094,16.075,20.0]
[1673340704126,66.62,16.093,16.076,46.67]
[1673340704454,66.62,16.093,16.077,21.92]
[1673340704654,20.0,16.093,16.078,46.66]
[1673340704857,46.61,16.095,16.079,20.96]
[1673340705069,46.61,16.097,16.08,0.96]
[1673340705279,20.0,16.1,16.082,20.0]
[1673340705280,46.61,16.098,16.082,20.0]
[1673340705490,46.61,16.098,16.083,48.57]
[1673340705813,46.61,16.098,16.084,20.0]
[1673340706239,46.61,16.098,16.085,1.92]
[1673340706679,46.59,16.102,16.085,1.92]
[1673340706984,20.0,16.101,16.086,20.0]
[1673340707200,46.6,16.1,16.087,0.96]
[1673340707409,20.0,16.099,16.087,0.96]
[1673340708130,20.0,16.101,16.087,0.96]
[1673340708340,46.6,16.1,16.087,0.96]
[1673340708669,20.0,16.099,16.087,0.96]
[1673340709282,20.0,16.101,16.087,0.96]
[1673340709501,46.6,16.1,16.087,0.96]
[1673340709703,20.0,16.099,16.087,0.96]
[1673340710459,66.6,16.1,16.086,20.0]
[1673340710656,66.6,16.1,16.087,0.96]
[1673340711192,0.96,16.099,16.086,20.0]
[1673340711377,46.61,16.098,16.087,0.96]
[1673340711823,46.61,16.098,16.088,0.96]
[1673340712036,47.56,16.099,16.088,0.96]
[1673340712538,47.56,16.099,16.087,0.96]
[1673340715398,46.6,16.099,16.087,0.96]
[1673340715587,46.6,16.099,16.088,0.96]
[1673340715912,20.0,16.098,16.085,112.4155]
[1673340716126,48.53,16.097,16.085,112.4155]
[1673340716975,48.53,16.097,16.086,20.0]
[1673340717914,1.92,16.097,16.087,17.0]
[1673340719916,20.0,16.095,16.086,17.0]
[1673340720109,66.62,16.094,16.086,17.0]
[1673340720322,18.92,16.093,16.078,116.3514]
[1673340720527,46.62,16.092,16.078,116.3514]
[1673340720733,20.0,16.09,16.078,116.3514]
[1673340720948,67.59,16.089,16.078,116.3514]
[1673340721153,0.96,16.088,16.078,116.3514]
[1673340721384,47.6,16.087,16.078,116.3514]
[1673340721591,47.6,16.087,16.075,20.0]
[1673340721804,47.6,16.087,16.076,17.0]
[1673340722640,46.64,16.087,16.076,17.0]
[1673340722846,20.0,16.089,16.078,20.0]
[1673340723066,20.0,16.1,16.078,20.0]
[1673340723067,20.0,16.091,16.079,18.92]
[1673340723273,66.61,16.096,16.08,20.0]
[1673340723484,20.0,16.095,16.08,20.0]
[1673340723694,66.62,16.094,16.081,18.92]
[1673340724219,20.0,16.103,16.082,77.34298209]
[1673340724416,143.9695,16.128,16.094,110.33356999]
[1673340724640,109.9231,16.128,16.1,122.83]
[1673340724839,66.52,16.127,16.101,105.52]
[1673340725044,66.52,16.127,16.101,190.38573641]
[1673340725293,20.0,16.126,16.102,104.86573641]
[1673340725505,46.5,16.134,16.11,24.5]
[1673340725679,20.0,16.135,16.111,46.57]
[1673340725890,46.5,16.134,16.112,17.0]
[1673340726100,20.0,16.133,16.112,17.0]
[1673340726311,46.51,16.132,16.112,17.0]
[1673340726535,20.0,16.131,16.11,24.5]
[1673340726745,46.51,16.13,16.111,17.0]
[1673340726954,20.0,16.129,16.111,17.0]
[1673340727276,46.52,16.128,16.111,17.0]
[1673340727597,20.0,16.133,16.112,20.0]
[1673340727598,46.51,16.132,16.112,20.0]
[1673340727778,20.0,16.131,16.113,17.0]
[1673340727987,46.51,16.13,16.113,17.0]
[1673340728196,46.51,16.13,16.114,0.96]
[1673340728407,46.51,16.132,16.113,63.56]
[1673340728628,20.0,16.131,16.113,17.0]
[1673340728849,66.51,16.13,16.113,17.0]
[1673340729297,66.51,16.13,16.112,46.57]
[1673340729514,20.0,16.128,16.109,46.57]
[1673340729714,65.44,16.127,16.109,46.57]
[1673340729934,20.0,16.126,16.108,20.0]
[1673340730130,85.45,16.125,16.108,20.0]
[1673340730344,68.45,16.125,16.108,66.58]
[1673340730564,21.92,16.125,16.108,66.58]
[1673340730755,1.92,16.125,16.108,66.58]
[1673340731179,1.92,16.125,16.109,1.92]
[1673340731405,1.92,16.125,16.11,46.57]
[1673340731600,1.92,16.125,16.111,20.96]
[1673340731809,1.92,16.125,16.112,46.57]
[1673340732542,20.0,16.124,16.09,24.74]
[1673340732754,46.53,16.123,16.091,114.0896]
[1673340732959,20.0,16.121,16.092,20.0]
[1673340733181,84.5,16.12,16.093,46.62]
[1673340733393,20.0,16.119,16.094,20.0]
[1673340733597,85.47,16.118,16.093,46.62]
[1673340733929,20.0,16.117,16.093,46.62]
[1673340734244,20.0,16.115,16.093,20.0]
[1673340734433,84.52,16.114,16.092,46.62]
[1673340734756,20.96,16.113,16.092,46.62]
[1673340734952,63.57,16.112,16.092,46.62]
[1673340735176,20.0,16.111,16.092,46.62]
[1673340735386,65.49,16.11,16.093,20.0]
[1673340735600,20.0,16.109,16.093,20.0]
[1673340735791,65.5,16.108,16.094,46.62]
[1673340736010,65.5,16.108,16.093,66.62]
[1673340736868,48.5,16.108,16.093,66.62]
[1673340737388,17.0,16.107,16.093,46.62]
[1673340737707,48.5,16.106,16.091,114.0896]
[1673340737904,17.0,16.105,16.091,114.0896]
[1673340738115,1.92,16.104,16.092,20.0]
[1673340739382,46.58,16.108,16.092,20.0]
[1673340739915,46.58,16.108,16.093,0.96]
[1673340740943,1.92,16.107,16.093,0.96]
[1673340742212,20.0,16.109,16.094,0.96]
[1673340742422,46.57,16.112,16.094,0.96]
[1673340742423,1.92,16.108,16.096,20.0]
[1673340742843,1.92,16.108,16.097,17.0]
[1673340746208,1.92,16.108,16.098,20.0]
[1673340746401,1.92,16.108,16.099,17.0]
[1673340747044,1.92,16.108,16.094,41.70017042]
[1673340747245,46.58,16.107,16.091,114.0896]
[1673340747451,38.92,16.106,16.092,20.0]
[1673340747663,46.59,16.105,16.092,20.0]
[1673340747894,1.92,16.104,16.092,20.0]
[1673340748316,20.0,16.102,16.088,46.63]
[1673340748522,20.0,16.102,16.085,46.64]
[1673340748523,46.6,16.101,16.085,46.64]
[1673340748740,38.92,16.1,16.084,139.1173]
[1673340748928,46.6,16.099,16.084,139.1173]
[1673340749258,1.92,16.098,16.084,139.1173]
[1673340749469,21.92,16.098,16.084,139.1173]
[1673340749665,21.92,16.098,16.085,17.0]
[1673340750410,46.6,16.099,16.086,20.96]
[1673340750613,20.0,16.1,16.087,17.96]
[1673340750820,20.0,16.104,16.088,0.96]
[1673340751026,48.51,16.103,16.088,20.96]
[1673340751252,20.0,16.102,16.089,17.0]
[1673340751690,40.0,16.104,16.089,17.0]
[1673340751898,46.59,16.103,16.089,17.0]
[1673340752116,20.0,16.102,16.089,17.0]
[1673340753041,0.96,16.101,16.089,17.0]
[1673340753252,20.0,16.102,16.089,17.0]
[1673340753569,1.92,16.101,16.089,17.0]
[1673340753788,66.59,16.103,16.09,20.0]
[1673340753998,1.92,16.102,16.09,20.0]
[1673340754312,111.4303,16.11,16.092,20.0]
[1673340754521,111.4303,16.11,16.093,65.54]
[1673340754725,66.57,16.109,16.094,20.0]
[1673340754950,66.57,16.109,16.095,18.92]
[1673340755772,20.0,16.108,16.095,18.92]
[1673340756098,66.57,16.109,16.095,18.92]
[1673340756308,1.92,16.108,16.095,18.92]
[1673340758218,21.92,16.108,16.095,18.92]
[1673340758520,1.92,16.108,16.095,18.92]
[1673340759362,21.92,16.108,16.095,18.92]
[1673340759681,21.92,16.108,16.093,156.8614]
[1673340759995,46.58,16.107,16.094,20.0]
[1673340760207,1.92,16.106,16.094,20.0]
[1673340761779,1.92,16.106,16.093,110.2414]
[1673340761973,21.92,16.106,16.093,110.2414]
[1673340762187,20.0,16.104,16.09,46.63]
[1673340762523,21.92,16.103,16.091,20.0]
[1673340762935,1.92,16.103,16.091,20.0]
[1673340763153,0.96,16.103,16.091,20.0]
[1673340763475,1.92,16.103,16.092,17.0]
[1673340764731,1.92,16.103,16.093,20.0]
[1673340765049,1.92,16.103,16.094,17.0]
[1673340765249,66.58,16.108,16.094,17.0]
[1673340766495,18.92,16.107,16.087,46.64]
[1673340766704,20.0,16.105,16.09,17.0]
[1673340766936,48.51,16.104,16.09,17.0]
[1673340767139,20.0,16.103,16.09,17.0]
[1673340767334,1.92,16.102,16.09,17.0]
[1673340767766,1.92,16.102,16.091,20.0]
[1673340767975,1.92,16.102,16.092,17.0]
[1673340769150,20.0,16.103,16.092,17.0]
[1673340769544,20.0,16.106,16.092,17.0]
[1673340769760,46.57,16.109,16.093,21.92]
[1673340769970,46.57,16.111,16.095,20.0]
[1673340770196,20.0,16.109,16.096,17.0]
[1673340770619,40.0,16.109,16.096,17.0]
[1673340770815,40.0,16.109,16.097,0.96]
[1673340771013,20.0,16.109,16.097,0.96]
[1673340771227,20.0,16.109,16.097,20.96]
[1673340771437,20.0,16.109,16.098,17.0]
[1673340772094,40.0,16.109,16.098,17.0]
[1673340772925,66.57,16.109,16.095,20.0]
[1673340773244,20.0,16.108,16.096,1.92]
[1673340773449,20.0,16.109,16.096,1.92]
[1673340773869,20.0,16.108,16.096,1.92]
[1673340775752,20.0,16.109,16.096,1.92]
[1673340776080,20.0,16.109,16.097,20.0]
[1673340777526,40.0,16.109,16.097,20.0]
[1673340777950,20.0,16.109,16.097,20.0]
[1673340779024,66.58,16.108,16.092,46.62]
[1673340779213,1.92,16.107,16.092,46.62]
[1673340779424,1.92,16.107,16.093,20.0]
[1673340780179,1.92,16.107,16.092,46.62]
[1673340780384,46.58,16.106,16.089,108.982]
[1673340780701,20.0,16.104,16.089,108.982]
[1673340780913,20.0,16.102,16.089,108.982]
[1673340781119,21.92,16.101,16.089,108.982]
[1673340782386,21.92,16.101,16.09,20.0]
[1673340782793,1.92,16.101,16.09,20.0]
[1673340783003,1.92,16.101,16.091,17.0]
[1673340786575,20.0,16.102,16.092,20.0]
[1673340786790,46.58,16.107,16.093,17.96]
[1673340787010,66.57,16.109,16.093,17.0]
[1673340787202,46.58,16.107,16.093,17.0]
[1673340787413,20.0,16.106,16.093,17.0]
[1673340787624,46.59,16.105,16.093,17.0]
[1673340787839,20.0,16.104,16.093,17.0]
[1673340788266,1.92,16.103,16.091,20.0]
[1673340788994,1.92,16.103,16.09,92.95]
[1673340789205,1.92,16.103,16.09,66.63]
[1673340789842,1.92,16.103,16.09,46.63]
[1673340790580,20.0,16.102,16.089,108.982]
[1673340790897,1.92,16.101,16.089,108.982]
[1673340792910,21.92,16.101,16.089,108.982]
[1673340793828,20.0,16.1,16.089,108.982]
[1673340794029,21.92,16.099,16.089,108.982]
[1673340795183,68.52,16.099,16.089,108.982]
[1673340798673,68.52,16.099,16.086,20.0]
[1673340798894,20.0,16.098,16.086,20.0]
[1673340799077,1.92,16.097,16.086,20.0]
[1673340799620,1.92,16.097,16.085,137.4326]
[1673340800359,66.6,16.099,16.085,137.4326]
[1673340800555,1.92,16.098,16.085,137.4326]
[1673340802878,1.92,16.098,16.087,20.0]
[1673340804455,1.92,16.098,16.088,17.0]
[1673340808751,21.92,16.098,16.088,17.0]
[1673340808962,21.92,16.098,16.085,137.4326]
[1673340809179,21.92,16.098,16.086,17.0]
[1673340812028,1.92,16.098,16.086,17.0]
[1673340815493,1.92,16.098,16.087,20.0]
[1673340816330,20.0,16.099,16.088,17.0]
[1673340816855,0.96,16.098,16.087,20.0]
[1673340817069,0.96,16.097,16.087,20.0]
[1673340817281,0.96,16.096,16.087,20.0]
[1673340817470,0.96,16.095,16.087,20.0]
[1673340818756,0.96,16.095,16.086,20.0]
[1673340819802,40.0,16.099,16.086,20.0]
[1673340820118,1.92,16.098,16.087,17.0]
[1673340821481,1.92,16.098,16.088,20.0]
[1673340822006,1.92,16.098,16.089,17.0]
[1673340824528,46.61,16.097,16.075,46.67]
[1673340824737,46.61,16.097,16.075,112.5676]
[1673340824738,26.17,16.09,16.075,112.5676]
[1673340824953,46.63,16.089,16.071,46.68]
[1673340825163,40.96,16.088,16.072,20.0]
[1673340825374,64.6,16.087,16.066,159.2676]
[1673340825566,20.96,16.086,16.067,20.0]
[1673340825896,64.6,16.085,16.068,46.69]
[1673340826089,40.96,16.084,16.069,20.0]
[1673340826299,0.96,16.083,16.068,46.69]
[1673340826526,0.96,16.082,16.069,20.0]
[1673340826740,20.96,16.082,16.069,20.0]
[1673340826928,20.0,16.081,16.069,20.0]
[1673340827138,20.0,16.08,16.069,20.0]
[1673340827365,20.0,16.08,16.07,46.69]
[1673340827557,20.0,16.08,16.069,20.0]
[1673340827763,0.96,16.082,16.069,20.0]
[1673340829572,20.96,16.082,16.069,20.0]
[1673340829786,20.0,16.081,16.069,20.0]
[1673340830190,20.0,16.081,16.07,46.69]
[1673340830404,20.96,16.083,16.069,20.0]
[1673340835130,0.96,16.082,16.069,20.0]
[1673340836085,0.96,16.081,16.069,20.0]
[1673340836278,20.96,16.081,16.069,20.0]
[1673340836917,0.96,16.08,16.069,20.0]
[1673340837129,0.96,16.079,16.069,20.0]
[1673340837553,20.0,16.081,16.069,20.0]
[1673340837981,40.0,16.082,16.069,20.0]
[1673340838194,1.92,16.081,16.069,20.0]
[1673340839657,21.92,16.081,16.069,20.0]
[1673340839875,20.0,16.08,16.069,20.0]
[1673340840934,1.92,16.079,16.069,20.0]
[1673340842505,20.0,16.08,16.069,20.0]
[1673340842722,20.0,16.081,16.069,20.0]
[1673340842913,20.0,16.082,16.069,20.0]
[1673340843435,20.0,16.082,16.07,46.69]
[1673340843644,20.0,16.082,16.071,20.0]